fUST/lending_fUST_20251217
["ID","MTS","AMOUNT","RATE_DAILY","PERIOD"]
[398897979,1765975191738,-500.0,0.00024998,2]
[398897980,1765975191763,-500.0,0.00024998,2]
[398897981,1765975191787,-500.0,0.00024998,2]
[398897982,1765975191816,-300.0,0.00024998,2]
[398897983,1765975191843,-500.0,0.00024998,2]
[398897984,1765975191882,-500.0,0.00024998,2]
[398897985,1765975191909,-500.0,0.00024998,2]
[398897986,1765975191935,-300.0,0.00024999,2]
[398897987,1765975191962,-300.0,0.00024999,2]
[398897988,1765975191990,-300.0,0.00024999,2]
[398897989,1765975192019,-1200.0,0.00024999,2]
[398897990,1765975192045,-32239.3119066,0.00025,2]
[398897992,1765975350954,178.94,0.0001,2]
[398897993,1765975353751,178.94,0.000102,2]
[398897994,1765975361003,644.52,9.344e-05,2]
[398897995,1765975361446,1289.05,0.00010194,2]
[398897996,1765975361838,1933.57,0.00011043,2]
[398897997,1765975362268,2578.09,0.00011893,2]
[398897998,1765975363136,3222.61,0.00012742,2]
[398897999,1765975363741,3867.14,0.00013592,2]
[398898000,1765975364197,934.12842554,0.00014441,2]
[398898001,1765975367556,-593.95443664,0.00014441,2]
[398898002,1765975371565,-259.2758849,0.00014441,2]
[398898003,1765975373273,-288.77031536,0.00014441,2]
[398898004,1765975376417,-266.34140231,0.00014441,2]
[398898005,1765975380561,-224.17334345,0.00014441,2]
[398898006,1765975397728,-314.16885963,0.00014441,2]
[398898007,1765975400417,-277.03866642,0.00014441,2]
[398898008,1765975403534,-153.68,0.00014441,2]
[398898009,1765975405623,-201.62989558,0.00014441,2]
[398898010,1765975407760,-175.13156135,0.00014441,2]
[398898011,1765975414341,-541.95117535,0.00014441,2]
[398898012,1765975421383,-168.8721681,0.00014441,2]
[398898013,1765975423671,-112.54386537,0.00014441,2]
[398898014,1765975423696,-204.18046475,0.00015291,2]
[398898015,1765975430631,-369.81,0.00015291,2]
[398898016,1765975441172,451.94,9.831e-05,2]
[398898017,1765975457557,-164.86,0.00010725,2]
[398898018,1765975461455,-247.68464251,0.00010725,2]
[398898019,1765975466007,-197.6,0.00010725,2]
[398898020,1765975468882,-293.73535749,0.00010725,2]
[398898021,1765975468905,-183.57464248,0.00011619,2]
[398898022,1765975472252,-1172.24535752,0.00011619,2]
[398898023,1765975472277,-1277.76452363,0.00012513,2]
[398898024,1765975524391,406.06,9.876e-05,2]
[398898025,1765975529219,-812.12,0.00010773,2]
[398898026,1765975529251,-1218.19,0.00011671,2]
[398898027,1765975529283,-639.29792731,0.00012264,2]
[398898028,1765975529312,-2210.78426423,0.00012388,2]
[398898029,1765975535123,-239.22561692,0.00012388,2]
[398898030,1765975535154,-1624.25,0.00012569,2]
[398898031,1765975535185,-2030.31,0.00013467,2]
[398898032,1765975535212,-300.0,0.00013673,2]
[398898033,1765975541187,-2436.37,0.00014365,2]
[398898046,1765975604225,342.14,9.655e-05,2]
[398898047,1765975606466,-247.28740279,0.00010532,2]
[398898048,1765975609324,-167.60864518,0.00010532,2]
[398898049,1765975611177,-218.36568363,0.00010532,2]
[398898050,1765975616149,-51.0182684,0.00010532,2]
[398898051,1765975616173,-156.15274242,0.0001141,2]
[398898052,1765975620230,-238.00945393,0.0001141,2]
[398898053,1765975624672,-369.81,0.0001141,2]
[398898054,1765975635133,-262.44780365,0.0001141,2]
[398898055,1765975635156,-199.65754249,0.00012288,2]
[398898056,1765975642121,-1168.90245751,0.00012288,2]
[398898057,1765975642143,-1310.8935654,0.00013165,2]
[398898058,1765975652086,-399.8164346,0.00013165,2]
[398898059,1765975652108,-2052.85,0.00014043,2]
[398898060,1765975652130,-2387.93045914,0.00014921,2]
[398898061,1765975690147,227.61,9.598e-05,2]
[398898062,1765975691033,455.22,0.0001047,2]
[398898063,1765975696489,-212.98,0.00011343,2]
[398898064,1765975747087,-2892.45114691,0.0001123,2]
[398898065,1765975747112,-469.85,0.00011343,2]
[398898066,1765975747134,-910.44,0.00012215,2]
[398898067,1765975747157,-630.71079841,0.00013088,2]
[398898068,1765975771101,193.32,9.628e-05,2]
[398898069,1765975771516,386.65,0.00010503,2]
[398898074,1765975831888,-579.97,0.00011379,2]
[398898075,1765975831897,-580.0,0.00011379,2]
[398898076,1765975831906,-773.3,0.00012254,2]
[398898077,1765975831915,-694.57788174,0.00013129,2]
[398898078,1765975831927,-272.04211826,0.00013129,2]
[398898080,1765975831935,-533.52788174,0.00014005,2]
[398898081,1765975831947,-626.42211826,0.00014005,2]
[398898082,1765975831956,-485.72169448,0.0001488,2]
[398898083,1765975831967,-867.54830552,0.0001488,2]
[398898084,1765975831976,-150.0,0.00015186,2]
[398898085,1765975831985,-531.4939199,0.00015755,2]
[398898086,1765975831996,-1015.1060801,0.00015755,2]
[398898087,1765975832005,-1200.0,0.0001663,2]
[398898088,1765975832014,-1739.92,0.00016631,2]
[398898089,1765975832023,-177.0,0.00017186,2]
[398898090,1765975832032,-300.0,0.00017505,2]
[398898091,1765975832041,-300.0,0.00017505,2]
[398898092,1765975832051,-1933.24,0.00017506,2]
[398898094,1765975832061,-595.0,0.00017553,2]
[398898096,1765975832074,-198.08824625,0.00018141,2]
[398898098,1765975832083,-204.0,0.00019186,2]
[398898100,1765975832093,-231.0,0.00021186,2]
[398898102,1765975832102,-384.1,0.0002155,2]
[398898104,1765975832112,-325.8612373,0.00024658,2]
[398898106,1765975832121,-207.04581584,0.00025103,2]
[398898108,1765975832130,-2000.0,0.00025203,14]
[398898110,1765975832141,-500.0,0.00026848,2]
[398898112,1765975832150,-31.25286229,0.00026848,2]
[398898141,1765975838203,-165.769371,0.00028354,60]
[398898143,1765975838213,-500.0,0.00028681,2]
[398898145,1765975838222,-500.0,0.00028681,2]
[398898147,1765975838231,-149.86202738,0.00028681,2]
[398898151,1765975838259,-8.64393855,0.00028681,2]
[398898153,1765975838268,-227.83783671,0.00028681,2]
[398898155,1765975838278,-500.0,0.00028681,2]
[398898157,1765975838287,-500.0,0.00028681,2]
[398898159,1765975838296,-500.0,0.00028681,2]
[398898161,1765975838305,-433.30102309,0.00028681,2]
[398898189,1765975840427,-3e-08,0.00028681,2]
[398898191,1765975843001,-66.69897688,0.00028681,2]
[398898192,1765975843011,-423.5857666,0.00028681,2]
[398898193,1765975843083,-20.57642207,0.00028681,2]
[398898194,1765975843092,-68.37295311,0.00028682,3]
[398898206,1765975848625,150.0,9.63e-05,2]
[398898207,1765975849041,150.0,0.00010505,2]
[398898208,1765975927672,150.0,9.625e-05,2]
[398898209,1765975928112,150.0,0.000105,2]
[398898210,1765976028884,150.0,9.585e-05,2]
[398898211,1765976029297,150.0,0.00010456,2]
[398898212,1765976110007,150.0,9.726e-05,2]
[398898213,1765976195710,150.0,9.72e-05,2]
[398898214,1765976272282,150.0,9.68e-05,2]
[398898215,1765976312958,5000.0,0.00010512,2]
[398898216,1765976350904,150.0,9.554e-05,2]
[398898217,1765976351286,150.0,0.00010423,2]
[398898218,1765976422870,150.0,9.593e-05,2]
[398898219,1765976423284,150.0,0.00010465,2]
[398898220,1765976498169,150.0,0.00010042,2]
[398898221,1765976575314,577.0,0.00019,120]
[398898222,1765976578842,150.0,9.711e-05,2]
[398898223,1765976652614,150.0,9.858e-05,2]
[398898224,1765976726474,150.0,9.826e-05,2]
[398898225,1765976800394,150.0,9.846e-05,2]
[398898226,1765976806032,240.8,0.00014,30]
[398898227,1765976828458,180.6,0.00014,30]
[398898228,1765976833106,-150.0,0.00010755,2]
[398898229,1765976833126,-150.0,0.00011004,2]
[398898230,1765976833144,-575.0,0.00011052,2]
[398898231,1765976833166,-80.37313754,0.00011651,2]
[398898232,1765976838079,-150.0,0.00010879,2]
[398898233,1765976838102,-69.62686246,0.00011651,2]
[398898234,1765976838134,-150.0,0.00012547,2]
[398898235,1765976838155,-177.0,0.00012879,2]
[398898236,1765976838177,-150.0,0.000134,2]
[398898237,1765976838196,-1200.0,0.00013697,2]
[398898238,1765976838215,-300.0,0.00013698,2]
[398898239,1765976838234,-300.0,0.00013698,2]
[398898240,1765976838254,-270.0,0.00013698,2]
[398898241,1765976838274,-300.0,0.00013698,2]
[398898242,1765976838293,-500.99949186,0.00013699,2]
[398898243,1765976838311,-500.72232938,0.00013699,2]
[398898244,1765976838329,-500.0,0.00013699,2]
[398898245,1765976838346,-500.0,0.00013699,2]
[398898246,1765976838365,-500.788438,0.00013699,2]
[398898247,1765976838383,-500.0,0.00013699,2]
[398898248,1765976838401,-500.0,0.00013699,2]
[398898249,1765976838420,-221.01601573,0.00013699,2]
[398898250,1765976854515,270.9,0.00014,30]
[398898251,1765976865931,270.89,0.00014,30]
[398898252,1765976870648,150.0,9.977e-05,2]
[398898254,1765976937489,-150.0,0.00010884,2]
[398898255,1765976937521,-150.0,0.00011791,2]
[398898256,1765976937549,-215.01784125,0.00012524,7]
[398898257,1765976937581,-150.0,0.00012698,2]
[398898258,1765976937613,-150.0,0.00013605,2]
[398898259,1765976937642,-279.99611821,0.00013699,2]
[398898260,1765976937673,-500.0,0.00013699,2]
[398898261,1765976937703,-500.0,0.00013699,2]
[398898262,1765976937735,-150.0,0.00014512,2]
[398898263,1765976937765,-204.0,0.00014879,2]
[398898264,1765976937797,-150.0,0.00015419,2]
[398898265,1765976937830,-150.0,0.00016326,2]
[398898266,1765976937859,-231.0,0.00016879,2]
[398898267,1765976937891,-164.31,0.00017233,2]
[398898268,1765976937917,-258.0,0.00018879,2]
[398898270,1765977004577,150.0,9.611e-05,2]
[398898271,1765977004990,150.0,0.00010484,2]
[398898272,1765977005435,154.15,0.00011358,2]
[398898273,1765977005866,205.53,0.00012232,2]
[398898274,1765977006294,124.32,0.00013105,2]
[398898294,1765977032071,-132.6,0.00013105,2]
[398898296,1765977032081,-293.74100583,0.00013979,2]
[398898298,1765977032093,-14.55899417,0.00013979,2]
[398898300,1765977032103,-359.68,0.00014853,2]
[398898302,1765977032111,-137.84308604,0.00015727,2]
[398898304,1765977032123,-273.22691396,0.00015727,2]
[398898306,1765977032133,-462.45,0.000166,2]
[398898307,1765977032143,-513.83,0.00017474,2]
[398898308,1765977032152,-1495.92169305,0.00018999,15]
[398898309,1765977032163,-504.07830695,0.00018999,15]
[398898310,1765977032172,-346.4,0.00021632,2]
[398898311,1765977032182,-616.50483742,0.00021632,2]
[398898312,1765977032193,-135.49516258,0.00021632,2]
[398898313,1765977032203,-172.60413741,0.00022693,30]
[398898337,1765977038124,-314.4785267,0.00022693,30]
[398898340,1765977038135,-512.91733589,0.00022693,30]
[398898342,1765977038144,-2000.0,0.00025202,14]
[398898344,1765977038154,-215.01784125,0.000257,2]
[398898346,1765977038163,-179.37796548,0.00025874,2]
[398898348,1765977038173,-427.5,0.00026647,10]
[398898350,1765977038182,-247.5,0.00026647,10]
[398898352,1765977038192,-229.8976965,0.00027236,2]
[398898354,1765977038202,-2000.0,0.00028353,15]
[398898356,1765977038211,-2705.9881793,0.00028374,2]
[398898358,1765977038222,-412.0,0.00028374,2]
[398898360,1765977038234,-592.48723408,0.00028374,2]
[398898362,1765977038243,-2000.0,0.0002868,2]
[398898364,1765977038253,-500.0,0.0002868,2]
[398898366,1765977038262,-334.97619169,0.0002868,2]
[398898368,1765977038271,-327.12913208,0.0002868,2]
[398898371,1765977038281,-500.0,0.0002868,2]
[398898374,1765977038290,-480.71299663,0.0002868,2]
[398898377,1765977038300,-500.0,0.0002868,2]
[398898380,1765977038309,-438.86548057,0.0002868,2]
[398898382,1765977038320,-500.0,0.0002868,2]
[398898384,1765977038329,-492.6275,0.0002868,2]
[398898387,1765977038339,-2000.0,0.00028681,3]
[398898389,1765977038349,-346.4,0.00028756,3]
[398898391,1765977038358,-177.07694445,0.00028797,2]
[398898392,1765977038368,-1140.0,0.0003,120]
[398898394,1765977038378,-413.81585371,0.00030598,2]
[398898397,1765977038388,-15028.25826679,0.0003112,2]
[398898399,1765977038399,-500.5632226,0.0003112,2]
[398898401,1765977038408,-617.1196373,0.000319,2]
[398898566,1765977040324,-1299.86074466,0.000319,2]
[398898841,1765977043410,-1350.9187475,0.000319,2]
[398899025,1765977153004,150.0,9.597e-05,2]
[398899026,1765977153403,150.0,0.00010469,2]
[398899027,1765977224122,150.0,9.763e-05,2]
[398899028,1765977292971,150.0,9.623e-05,2]
[398899029,1765977293419,150.0,0.00010498,2]
[398899031,1765977360139,150.0,9.591e-05,2]
[398899032,1765977360578,150.0,0.00010463,2]
[398899037,1765978040116,-150.0,0.00013699,2]
[398899038,1765978040140,-615.0,0.00013699,2]
[398899039,1765978040168,-158.0,0.000137,2]
[398899040,1765978040193,-288.18068551,0.00015699,2]
[398899041,1765978040213,-160.0,0.000157,2]
[398899042,1765978040233,-160.0,0.000157,2]
[398899043,1765978040253,-160.0,0.000172,2]
[398899044,1765978040274,-160.0,0.000172,2]
[398899045,1765978040294,-159.0,0.000172,2]
[398899046,1765978040315,-160.0,0.000192,3]
[398899047,1765978040339,-160.0,0.000192,4]
[398899048,1765978040361,-160.0,0.000192,4]
[398899049,1765978040381,-288.7,0.00021923,2]
[398899050,1765978040401,-162.84,0.00024999,30]
[398899051,1765978040423,-160.0,0.000253,14]
[398899052,1765978040443,-160.0,0.000253,14]
[398899053,1765978040463,-160.0,0.000253,14]
[398899054,1765978040483,-160.0,0.000266,19]
[398899055,1765978040503,-160.0,0.000266,19]
[398899056,1765978040523,-160.0,0.000269,20]
[398899057,1765978040543,-160.0,0.000269,20]
[398899058,1765978040562,-160.0,0.000269,20]
[398899059,1765978040580,-160.0,0.000288,120]
[398899060,1765978040600,-160.0,0.000288,120]
[398899061,1765978040619,-288.7,0.00029021,3]
[398899062,1765978040640,-160.0,0.0003,120]
[398899063,1765978040660,-138.49490741,0.0003,120]
[398899064,1765978078555,150.0,9.717e-05,2]
[398899065,1765978164107,-2964.47312397,0.000114,2]
[398899066,1765978166097,-62.35723705,0.000114,2]
[398899067,1765978166122,-500.0,0.00013699,2]
[398899068,1765978166145,-3766.26875282,0.00014,7]
[398899070,1765978210089,150.0,9.51e-05,2]
[398899071,1765978210523,150.0,0.00010374,2]
[398899072,1765978210964,150.0,0.00011239,2]
[398899106,1765978232401,-912.08134046,0.00014,7]
[398899135,1765978238327,-966.01590328,0.00014,7]
[398899141,1765978238386,-506.45985397,0.00014,7]
[398899143,1765978238398,-441.5154887,0.0001881,2]
[398899145,1765978238407,-197.6,0.00019,2]
[398899147,1765978238416,-724.99464248,0.00019,2]
[398899149,1765978238426,-184.72905057,0.00019,2]
[398899327,1765978240590,-518.27094943,0.00019,2]
[398899329,1765978240599,-77.29006634,0.00019198,2]
[398899522,1765978335373,172.63951897,0.00013273,2]
[398899523,1765978341047,150.0,9.347e-05,2]
[398899524,1765978341551,11.36048103,0.00010197,2]
[398899525,1765978341578,138.63951897,0.00010197,2]
[398899537,1765978408328,150.0,9.325e-05,2]
[398899538,1765978408912,150.0,0.00010173,2]
[398899542,1765978477495,150.0,9.343e-05,2]
[398899543,1765978477960,150.0,0.00010193,2]
[398899544,1765978516508,-436.76444759,0.00010828,2]
[398899546,1765978519545,-168.8721681,0.00010828,2]
[398899547,1765978522125,-593.95443664,0.00010828,2]
[398899549,1765978526748,-153.68,0.00010828,2]
[398899550,1765978528986,-224.17334345,0.00010828,2]
[398899551,1765978530477,-277.03866642,0.00010828,2]
[398899552,1765978532482,-288.77031536,0.00010828,2]
[398899553,1765978535365,-314.17376095,0.00010828,2]
[398899554,1765978538511,-175.13156135,0.00010828,2]
[398899555,1765978541145,-314.16885963,0.00010828,2]
[398899556,1765978542670,-541.95117535,0.00010828,2]
[398899557,1765978544197,-266.34140231,0.00010828,2]
[398899558,1765978547820,150.0,9.302e-05,2]
[398899559,1765978548231,196.49,0.00010147,2]
[398899560,1765978631987,150.0,9.326e-05,2]
[398899561,1765978632391,261.81,0.00010174,2]
[398899562,1765978688667,5000.0,0.00010512,2]
[398899563,1765978712019,5000.0,0.00010512,2]
[398899564,1765978713817,150.0,9.256e-05,2]
[398899565,1765978714228,251.33,0.00010098,2]
[398899566,1765978734984,1776.24077355,0.00010512,2]
[398899567,1765978743450,-5000.0,0.0001072,2]
[398899568,1765978743474,-150.0,0.00010828,2]
[398899569,1765978743497,-1200.0,0.00010936,2]
[398899570,1765978743524,-376.99,0.00010939,2]
[398899571,1765978743550,-300.0,0.00010991,2]
[398899572,1765978743575,-502.66,0.0001178,2]
[398899573,1765978743597,-300.0,0.00012028,2]
[398899574,1765978743620,-1200.0,0.00012029,2]
[398899575,1765978743643,-1680.0,0.0001203,2]
[398899576,1765978743666,-420.0,0.00012078,2]
[398899577,1765978743687,-532.39499677,0.00012078,2]
[398899578,1765978743714,-628.32,0.00012622,2]
[398899579,1765978743736,-177.0,0.00012828,2]
[398899580,1765978743759,-1680.0,0.00013205,2]
[398899581,1765978743781,-2351.0,0.00013233,2]
[398899582,1765978743804,-500.0,0.00013272,2]
[398899583,1765978743826,-500.0,0.00013272,2]
[398899584,1765978743850,-500.0,0.00013272,2]
[398899585,1765978743872,-500.81971669,0.00013272,2]
[398899586,1765978743896,-500.0,0.00013272,2]
[398899587,1765978743919,-3227.43088419,0.00013272,2]
[398899588,1765978743943,-500.0,0.00013272,2]
[398899589,1765978743965,-516.47320785,0.00013272,2]
[398899590,1765978743990,-500.0,0.00013272,2]
[398899591,1765978744013,-500.0,0.00013272,2]
[398899592,1765978744036,-3227.43088419,0.00013272,2]
[398899593,1765978744059,-500.0,0.00013272,2]
[398899594,1765978744085,-423.39350528,0.00013272,2]
[398899595,1765978744110,-500.0,0.00013272,2]
[398899596,1765978744257,-500.0,0.00013272,2]
[398899597,1765978744281,-628.95841407,0.00013272,2]
[398899598,1765978744305,-500.0,0.00013272,2]
[398899599,1765978744328,-3227.43088419,0.00013272,2]
[398899600,1765978744353,-500.0,0.00013272,2]
[398899601,1765978744381,-500.0,0.00013272,2]
[398899602,1765978744404,-3227.43088419,0.00013272,2]
[398899603,1765978744428,-196.38981789,0.00013272,2]
[398899604,1765978744452,-500.0,0.00013272,2]
[398899605,1765978744474,-3227.43088419,0.00013272,2]
[398899606,1765978744499,-500.0,0.00013272,2]
[398899607,1765978744521,-525.2081928,0.00013272,2]
[398899608,1765978744549,-3227.43088419,0.00013272,2]
[398899609,1765978744572,-500.0,0.00013272,2]
[398899610,1765978744594,-3227.43088419,0.00013272,2]
[398899611,1765978744619,-500.0,0.00013272,2]
[398899612,1765978744641,-500.0,0.00013272,2]
[398899613,1765978744665,-3227.43088419,0.00013272,2]
[398899614,1765978744690,-550.2840449,0.00013272,2]
[398899615,1765978744716,-500.0,0.00013272,2]
[398899616,1765978744739,-500.0,0.00013272,2]
[398899617,1765978744762,-3227.43088419,0.00013272,2]
[398899618,1765978744785,-3227.43088419,0.00013272,2]
[398899619,1765978744808,-500.0,0.00013272,2]
[398899620,1765978744832,-3227.43088419,0.00013272,2]
[398899621,1765978744857,-3227.43088419,0.00013272,2]
[398899622,1765978744880,-3227.43088419,0.00013272,2]
[398899623,1765978744904,-3227.43088419,0.00013272,2]
[398899624,1765978744930,-3227.43088419,0.00013272,2]
[398899625,1765978744954,-3227.43088419,0.00013272,2]
[398899626,1765978744978,-3227.43088419,0.00013272,2]
[398899627,1765978745002,-3227.43088419,0.00013272,2]
[398899628,1765978745027,-3227.43088419,0.00013272,2]
[398899629,1765978745052,-3227.43088419,0.00013272,2]
[398899630,1765978745077,-3227.43088419,0.00013272,2]
[398899631,1765978745100,-3227.43088419,0.00013272,2]
[398899632,1765978745123,-3227.43088419,0.00013272,2]
[398899633,1765978745147,-3227.43088419,0.00013272,2]
[398899634,1765978745170,-3227.43088419,0.00013272,2]
[398899635,1765978745193,-3227.43088419,0.00013272,2]
[398899636,1765978745217,-3227.43088419,0.00013272,2]
[398899637,1765978745242,-3227.43088419,0.00013272,2]
[398899638,1765978745266,-3227.43088419,0.00013272,2]
[398899639,1765978745290,-3227.43088419,0.00013272,2]
[398899640,1765978745313,-3227.43088419,0.00013272,2]
[398899641,1765978745336,-3227.43088419,0.00013272,2]
[398899642,1765978745358,-3227.43088419,0.00013272,2]
[398899643,1765978745381,-3227.43088419,0.00013272,2]
[398899644,1765978745405,-3227.43088419,0.00013272,2]
[398899645,1765978745428,-3227.43088419,0.00013272,2]
[398899646,1765978745451,-3227.43088419,0.00013272,2]
[398899647,1765978745474,-3227.43088419,0.00013272,2]
[398899648,1765978745498,-3227.43088419,0.00013272,2]
[398899649,1765978745521,-3227.43088419,0.00013272,2]
[398899650,1765978745549,-3227.43088419,0.00013272,2]
[398899651,1765978745572,-3227.43088419,0.00013272,2]
[398899652,1765978745595,-3227.43088419,0.00013272,2]
[398899653,1765978745620,-3227.43088419,0.00013272,2]
[398899654,1765978745644,-3227.43088419,0.00013272,2]
[398899655,1765978745670,-3227.43088419,0.00013272,2]
[398899656,1765978745694,-3227.43088419,0.00013272,2]
[398899657,1765978745721,-3227.43088419,0.00013272,2]
[398899658,1765978745745,-3227.43088419,0.00013272,2]
[398899659,1765978745768,-3227.43088419,0.00013272,2]
[398899660,1765978745790,-3227.43088419,0.00013272,2]
[398899661,1765978745819,-3227.43088419,0.00013272,2]
[398899662,1765978745842,-1833.70212587,0.00013272,2]
[398899663,1765978754921,-300.0,0.00012028,2]
[398899664,1765978754948,-420.0,0.00013204,2]
[398899665,1765978754971,-1393.72875832,0.00013272,2]
[398899666,1765978754994,-2985.37356787,0.00013272,2]
[398899667,1765978755020,-2985.37356787,0.00013272,2]
[398899668,1765978755043,-2985.37356787,0.00013272,2]
[398899669,1765978755067,-2985.37356787,0.00013272,2]
[398899670,1765978755092,-2985.37356787,0.00013272,2]
[398899671,1765978755118,-2985.37356787,0.00013272,2]
[398899672,1765978755140,-2985.37356787,0.00013272,2]
[398899673,1765978755166,-2985.37356787,0.00013272,2]
[398899674,1765978755190,-2985.37356787,0.00013272,2]
[398899675,1765978755213,-2985.37356787,0.00013272,2]
[398899676,1765978755237,-2985.37356787,0.00013272,2]
[398899677,1765978755260,-2985.37356787,0.00013272,2]
[398899678,1765978755284,-2985.37356787,0.00013272,2]
[398899679,1765978755309,-2985.37356787,0.00013272,2]
[398899680,1765978755436,-2985.37356787,0.00013272,2]
[398899681,1765978755460,-2985.37356787,0.00013272,2]
[398899682,1765978755483,-2985.37356787,0.00013272,2]
[398899683,1765978755508,-2985.37356787,0.00013272,2]
[398899684,1765978755537,-2985.37356787,0.00013272,2]
[398899685,1765978755560,-2985.37356787,0.00013272,2]
[398899686,1765978755584,-2985.37356787,0.00013272,2]
[398899687,1765978755608,-2985.37356787,0.00013272,2]
[398899688,1765978755632,-2985.37356787,0.00013272,2]
[398899689,1765978755656,-2985.37356787,0.00013272,2]
[398899690,1765978755692,-2985.37356787,0.00013272,2]
[398899691,1765978755720,-2985.37356787,0.00013272,2]
[398899692,1765978755745,-2985.37356787,0.00013272,2]
[398899693,1765978755771,-2985.37356787,0.00013272,2]
[398899694,1765978755795,-2985.37356787,0.00013272,2]
[398899695,1765978755820,-2985.37356787,0.00013272,2]
[398899696,1765978755846,-300.0,0.00013272,2]
[398899697,1765978755870,-300.0,0.00013272,2]
[398899698,1765978755894,-515.0,0.00013272,2]
[398899699,1765978755918,-505.34890486,0.00013273,2]
[398899700,1765978755942,-500.0,0.00013273,2]
[398899701,1765978755966,-522.19104878,0.00013273,2]
[398899702,1765978755991,-500.0,0.00013273,2]
[398899703,1765978756014,-500.0,0.00013273,2]
[398899704,1765978756038,-500.0,0.00013273,2]
[398899705,1765978756061,-500.0,0.00013273,2]
[398899706,1765978756083,-500.0,0.00013273,2]
[398899707,1765978756106,-502.58794908,0.00013273,2]
[398899708,1765978756132,-753.98,0.00013463,2]
[398899709,1765978756158,-221.32804112,0.00013682,2]
[398899710,1765978756181,-180.72237885,0.00013682,2]
[398899711,1765978756205,-701.718826,0.00013699,2]
[398899712,1765978756230,-1000.0,0.00013699,2]
[398899713,1765978756253,-505.59118412,0.00013699,2]
[398899714,1765978756276,-500.0,0.00013699,2]
[398899715,1765978756299,-500.0,0.00013699,2]
[398899716,1765978756322,-426.20601958,0.00013699,2]
[398899717,1765978756346,-3961.29499907,0.00013719,2]
[398899718,1765978756371,-3180.91260926,0.00013719,2]
[398899719,1765978756396,-151.0,0.00013819,2]
[398899720,1765978756420,-151.0,0.00013819,2]
[398899721,1765978756444,-151.0,0.00013819,2]
[398899722,1765978756468,-151.0,0.00013819,2]
[398899723,1765978756492,-240.913267,0.00013819,2]
[398899724,1765978756520,-1000.0,0.00013821,2]
[398899725,1765978756549,-1000.0,0.00013821,2]
[398899726,1765978756572,-506.50816276,0.00013821,2]
[398899727,1765978756596,-500.0,0.00013821,2]
[398899728,1765978756621,-1000.0,0.00013821,2]
[398899729,1765978793144,150.0,9.268e-05,2]
[398899730,1765978793660,183.54,0.0001011,2]
[398899731,1765978874161,150.0,9.293e-05,2]
[398899732,1765978874567,175.05,0.00010138,2]
[398899733,1765978879918,8293.96878,0.000165,59]
[398899734,1765978950076,3562.0,0.00014,30]
[398899735,1765978956121,150.0,9.229e-05,2]
[398899736,1765979037334,150.0,8.902e-05,2]
[398899737,1765979037777,162.95,9.711e-05,2]
[398899738,1765979071426,-183.57464248,0.0001052,2]
[398899739,1765979118611,176.54,8.614e-05,2]
[398899740,1765979119033,353.09,9.397e-05,2]
[398899741,1765979127203,-529.63,0.0001018,2]
[398899742,1765979127224,-574.0,0.00010953,2]
[398899743,1765979127251,-174.13452363,0.00010963,2]
[398899745,1765979213367,177.11,7.939e-05,2]
[398899746,1765979213823,354.22,8.661e-05,2]
[398899747,1765979214249,531.32,9.383e-05,2]
[398899748,1765979216038,-708.43,0.00010105,2]
[398899749,1765979216072,-463.81535752,0.00010827,2]
[398899750,1765979232859,-421.72464248,0.00010827,2]
[398899751,1765979232889,-1062.65,0.00011548,2]
[398899752,1765979232916,-150.0,0.00012112,2]
[398899753,1765979232946,-1239.76,0.0001227,2]